{"text_format":"3","workbook":"xlsx","n_sheets":2,"sheets":["Penjejak Menghilangkan Berat","pengiraan"],"not_rendered":{"charts":1,"defined_names":7},"read":"whole","date_system":"1900"}

{"sheet":"Penjejak Menghilangkan Berat","index":0,"n_rows":129,"n_cols":11,"rows_kept":129,"merged":[[0,4,0,9],[1,4,2,9]]}
[null,"BERAT SASARAN","PANDANGAN CARTA",null,"PENJEJAK"]
[{"$nulls":4},"PENGURANGAN BERAT BADAN KIMBERLY"]
[null,{"v":72,"d":"72.0"},"MINGGUAN",{"$nulls":7}," "]
[]
[]
[{"$nulls":10}," "]
{"$rows_empty":18}
[null,"TARIKH","BERAT"]
[null,"2012-11-30",{"v":76,"d":"76.0"}]
[null,"2012-12-07",{"v":76,"d":"76.0"}]
[null,"2012-12-14",77.6]
[null,"2012-12-21",76.5]
[null,"2012-12-28",76.1]
[null,"2013-01-04",{"v":74,"d":"74.0"}]
[null,"2013-01-11",{"v":73,"d":"73.0"}]
[null,"2013-01-18",{"v":72,"d":"72.0"}]
[null,"2013-01-25",{"v":72,"d":"72.0"}]
[null,"2013-02-01",{"v":73,"d":"73.0"}]
[null,"2013-02-08",{"v":74,"d":"74.0"}]
[null,"2013-02-15",{"v":75,"d":"75.0"}]
[null,"2013-02-22"]
[null,"2013-03-01"]
[null,"2013-03-08"]
[null,"2013-03-15"]
[null,"2013-03-22"]
[null,"2013-03-29"]
[null,"2013-04-05"]
[null,"2013-04-12"]
[null,"2013-04-19"]
[null,"2013-04-26"]
[null,"2013-05-03"]
[null,"2013-05-10"]
[null,"2013-05-17"]
[null,"2013-05-24"]
[null,"2013-05-31"]
[null,"2013-06-07"]
[null,"2013-06-14"]
[null,"2013-06-21"]
[null,"2013-06-28"]
[null,"2013-07-05"]
[null,"2013-07-12"]
[null,"2013-07-19"]
[null,"2013-07-26"]
[null,"2013-08-02"]
[null,"2013-08-09"]
[null,"2013-08-16"]
[null,"2013-08-23"]
[null,"2013-08-30"]
[null,"2013-09-06"]
[null,"2013-09-13"]
[null,"2013-09-20"]
[null,"2013-09-27"]
[null,"2013-10-04"]
[null,"2013-10-11"]
[null,"2013-10-18"]
[null,"2013-10-25"]
[null,"2013-11-01"]
[null,"2013-11-08"]
[null,"2013-11-15"]
[null,"2013-11-22"]
[null,"2013-11-29"]
[null,"2013-12-06"]
[null,"2013-12-13"]
[null,"2013-12-20"]
[null,"2013-12-27"]
[null,"2014-01-03"]
[null,"2014-01-10"]
[null,"2014-01-17"]
[null,"2014-01-24"]
[null,"2014-01-31"]
[null,"2014-02-07"]
[null,"2014-02-14"]
[null,"2014-02-21"]
[null,"2014-02-28"]
[null,"2014-03-07"]
[null,"2014-03-14"]
[null,"2014-03-21"]
[null,"2014-03-28"]
[null,"2014-04-04"]
[null,"2014-04-11"]
[null,"2014-04-18"]
[null,"2014-04-25"]
[null,"2014-05-02"]
[null,"2014-05-09"]
[null,"2014-05-16"]
[null,"2014-05-23"]
[null,"2014-05-30"]
[null,"2014-06-06"]
[null,"2014-06-13"]
[null,"2014-06-20"]
[null,"2014-06-27"]
[null,"2014-07-04"]
[null,"2014-07-11"]
[null,"2014-07-18"]
[null,"2014-07-25"]
[null,"2014-08-01"]
[null,"2014-08-08"]
[null,"2014-08-15"]
[null,"2014-08-22"]
[null,"2014-08-29"]
[null,"2014-09-05"]
[null,"2014-09-12"]
[null,"2014-09-19"]
[null,"2014-09-26"]
[null,"2014-10-03"]
[null,"2014-10-10"]
[null,"2014-10-17"]
[null,"2014-10-24"]
[null,"2014-10-31"]
[null,"2014-11-07"]
[null,"2014-11-14"]
[null,"2014-11-21"]

{"sheet":"pengiraan","index":1,"n_rows":108,"n_cols":17,"rows_kept":108}
["*** Helaian perlu kekal tersembunyi ***"]
[]
[{"$f":"COUNTIF(A5:A108,FALSE)","v":13},"Tempoh","Nilai",{"$nulls":3},{"$f":"COUNTIF(H5:H28,\">\"&0)","v":4},"Tempoh",null,"Nilai"]
[null,"Minggu",null,null,true,null,null,"Bulan","Hujung Minggu"]
[{"$f":"IF(('Penjejak Menghilangkan Berat'!C26=0)*('Penjejak Menghilangkan Berat'!C25=0),TRUE)","v":false},{"$f":"IF(A5,0,IF('Penjejak Menghilangkan Berat'!B26=0,'Penjejak Menghilangkan Berat'!B25+5,'Penjejak Menghilangkan Berat'!B26))","v":"2012-11-30"},{"$f":"'Penjejak Menghilangkan Berat'!C26","v":76},{"$f":"MIN(ChartPeriods)","v":"2012-11-30"},{"$f":"IF($E$4,GoalWeight,NA())","v":72},null,null,{"$f":"DATE(YEAR(B5),MONTH(B5),1)","v":"2012-11-01"},{"$f":"EOMONTH(H5,0)","v":"2012-11-30"},{"$f":"IFERROR(AVERAGEIFS(WeightTable[BERAT],WeightTable[TARIKH],\">=\"&H5,WeightTable[TARIKH],\"<=\"&I5),NA())","v":76}]
[{"$f":"IF(('Penjejak Menghilangkan Berat'!C27=0)*('Penjejak Menghilangkan Berat'!C26=0),TRUE)","v":false},{"$f":"IF(A6,0,IF('Penjejak Menghilangkan Berat'!B27=0,'Penjejak Menghilangkan Berat'!B26+5,'Penjejak Menghilangkan Berat'!B27))","v":"2012-12-07"},{"$f":"'Penjejak Menghilangkan Berat'!C27","v":76},{"$f":"MAX(ChartPeriods)","v":"2013-02-22"},72,null,null,{"$f":"IF(I5+1>MAX($B:$B),NA(),I5+1)","v":"2012-12-01"},"2012-12-31",{"$f":"IFERROR(AVERAGEIFS(WeightTable[BERAT],WeightTable[TARIKH],\">=\"&H6,WeightTable[TARIKH],\"<=\"&I6),NA())","v":76.55}]
[{"$f":"IF(('Penjejak Menghilangkan Berat'!C28=0)*('Penjejak Menghilangkan Berat'!C27=0),TRUE)","v":false},{"$f":"IF(A7,0,IF('Penjejak Menghilangkan Berat'!B28=0,'Penjejak Menghilangkan Berat'!B27+5,'Penjejak Menghilangkan Berat'!B28))","v":"2012-12-14"},{"$f":"'Penjejak Menghilangkan Berat'!C28","v":77.6},{"$nulls":4},{"$f":"IF(I6+1>MAX($B:$B),NA(),I6+1)","v":"2013-01-01"},"2013-01-31",{"$f":"IFERROR(AVERAGEIFS(WeightTable[BERAT],WeightTable[TARIKH],\">=\"&H7,WeightTable[TARIKH],\"<=\"&I7),NA())","v":72.75}]
[{"$f":"IF(('Penjejak Menghilangkan Berat'!C29=0)*('Penjejak Menghilangkan Berat'!C28=0),TRUE)","v":false},{"$f":"IF(A8,0,IF('Penjejak Menghilangkan Berat'!B29=0,'Penjejak Menghilangkan Berat'!B28+5,'Penjejak Menghilangkan Berat'!B29))","v":"2012-12-21"},{"$f":"'Penjejak Menghilangkan Berat'!C29","v":76.5},{"$nulls":4},"2013-02-01","2013-02-28",{"$f":"IFERROR(AVERAGEIFS(WeightTable[BERAT],WeightTable[TARIKH],\">=\"&H8,WeightTable[TARIKH],\"<=\"&I8),NA())","v":74}]
[{"$f":"IF(('Penjejak Menghilangkan Berat'!C30=0)*('Penjejak Menghilangkan Berat'!C29=0),TRUE)","v":false},{"$f":"IF(A9,0,IF('Penjejak Menghilangkan Berat'!B30=0,'Penjejak Menghilangkan Berat'!B29+5,'Penjejak Menghilangkan Berat'!B30))","v":"2012-12-28"},{"$f":"'Penjejak Menghilangkan Berat'!C30","v":76.1},{"$nulls":4},{"$error":"#N/A"},{"$error":"#N/A"},{"$f":"IFERROR(AVERAGEIFS(WeightTable[BERAT],WeightTable[TARIKH],\">=\"&H9,WeightTable[TARIKH],\"<=\"&I9),NA())","v":{"$error":"#N/A"}}]
[{"$f":"IF(('Penjejak Menghilangkan Berat'!C31=0)*('Penjejak Menghilangkan Berat'!C30=0),TRUE)","v":false},{"$f":"IF(A10,0,IF('Penjejak Menghilangkan Berat'!B31=0,'Penjejak Menghilangkan Berat'!B30+5,'Penjejak Menghilangkan Berat'!B31))","v":"2013-01-04"},{"$f":"'Penjejak Menghilangkan Berat'!C31","v":74},{"$nulls":4},{"$error":"#N/A"},{"$error":"#N/A"},{"$f":"IFERROR(AVERAGEIFS(WeightTable[BERAT],WeightTable[TARIKH],\">=\"&H10,WeightTable[TARIKH],\"<=\"&I10),NA())","v":{"$error":"#N/A"}}]
[{"$f":"IF(('Penjejak Menghilangkan Berat'!C32=0)*('Penjejak Menghilangkan Berat'!C31=0),TRUE)","v":false},{"$f":"IF(A11,0,IF('Penjejak Menghilangkan Berat'!B32=0,'Penjejak Menghilangkan Berat'!B31+5,'Penjejak Menghilangkan Berat'!B32))","v":"2013-01-11"},{"$f":"'Penjejak Menghilangkan Berat'!C32","v":73},{"$nulls":4},{"$error":"#N/A"},{"$error":"#N/A"},{"$f":"IFERROR(AVERAGEIFS(WeightTable[BERAT],WeightTable[TARIKH],\">=\"&H11,WeightTable[TARIKH],\"<=\"&I11),NA())","v":{"$error":"#N/A"}},{"$nulls":6},{"$f":"MAX($B:$B)","v":"2013-02-22"}]
[{"$f":"IF(('Penjejak Menghilangkan Berat'!C33=0)*('Penjejak Menghilangkan Berat'!C32=0),TRUE)","v":false},{"$f":"IF(A12,0,IF('Penjejak Menghilangkan Berat'!B33=0,'Penjejak Menghilangkan Berat'!B32+5,'Penjejak Menghilangkan Berat'!B33))","v":"2013-01-18"},{"$f":"'Penjejak Menghilangkan Berat'!C33","v":72},{"$nulls":4},{"$error":"#N/A"},{"$error":"#N/A"},{"$f":"IFERROR(AVERAGEIFS(WeightTable[BERAT],WeightTable[TARIKH],\">=\"&H12,WeightTable[TARIKH],\"<=\"&I12),NA())","v":{"$error":"#N/A"}}]
[{"$f":"IF(('Penjejak Menghilangkan Berat'!C34=0)*('Penjejak Menghilangkan Berat'!C33=0),TRUE)","v":false},{"$f":"IF(A13,0,IF('Penjejak Menghilangkan Berat'!B34=0,'Penjejak Menghilangkan Berat'!B33+5,'Penjejak Menghilangkan Berat'!B34))","v":"2013-01-25"},{"$f":"'Penjejak Menghilangkan Berat'!C34","v":72},{"$nulls":4},{"$error":"#N/A"},{"$error":"#N/A"},{"$f":"IFERROR(AVERAGEIFS(WeightTable[BERAT],WeightTable[TARIKH],\">=\"&H13,WeightTable[TARIKH],\"<=\"&I13),NA())","v":{"$error":"#N/A"}}]
[{"$f":"IF(('Penjejak Menghilangkan Berat'!C35=0)*('Penjejak Menghilangkan Berat'!C34=0),TRUE)","v":false},{"$f":"IF(A14,0,IF('Penjejak Menghilangkan Berat'!B35=0,'Penjejak Menghilangkan Berat'!B34+5,'Penjejak Menghilangkan Berat'!B35))","v":"2013-02-01"},{"$f":"'Penjejak Menghilangkan Berat'!C35","v":73},{"$nulls":4},{"$error":"#N/A"},{"$error":"#N/A"},{"$f":"IFERROR(AVERAGEIFS(WeightTable[BERAT],WeightTable[TARIKH],\">=\"&H14,WeightTable[TARIKH],\"<=\"&I14),NA())","v":{"$error":"#N/A"}}]
[{"$f":"IF(('Penjejak Menghilangkan Berat'!C36=0)*('Penjejak Menghilangkan Berat'!C35=0),TRUE)","v":false},{"$f":"IF(A15,0,IF('Penjejak Menghilangkan Berat'!B36=0,'Penjejak Menghilangkan Berat'!B35+5,'Penjejak Menghilangkan Berat'!B36))","v":"2013-02-08"},{"$f":"'Penjejak Menghilangkan Berat'!C36","v":74},{"$nulls":4},{"$error":"#N/A"},{"$error":"#N/A"},{"$f":"IFERROR(AVERAGEIFS(WeightTable[BERAT],WeightTable[TARIKH],\">=\"&H15,WeightTable[TARIKH],\"<=\"&I15),NA())","v":{"$error":"#N/A"}}]
[{"$f":"IF(('Penjejak Menghilangkan Berat'!C37=0)*('Penjejak Menghilangkan Berat'!C36=0),TRUE)","v":false},{"$f":"IF(A16,0,IF('Penjejak Menghilangkan Berat'!B37=0,'Penjejak Menghilangkan Berat'!B36+5,'Penjejak Menghilangkan Berat'!B37))","v":"2013-02-15"},{"$f":"'Penjejak Menghilangkan Berat'!C37","v":75},{"$nulls":4},{"$error":"#N/A"},{"$error":"#N/A"},{"$f":"IFERROR(AVERAGEIFS(WeightTable[BERAT],WeightTable[TARIKH],\">=\"&H16,WeightTable[TARIKH],\"<=\"&I16),NA())","v":{"$error":"#N/A"}}]
[{"$f":"IF(('Penjejak Menghilangkan Berat'!C38=0)*('Penjejak Menghilangkan Berat'!C37=0),TRUE)","v":false},{"$f":"IF(A17,0,IF('Penjejak Menghilangkan Berat'!B38=0,'Penjejak Menghilangkan Berat'!B37+5,'Penjejak Menghilangkan Berat'!B38))","v":"2013-02-22"},{"$f":"'Penjejak Menghilangkan Berat'!C38","v":0},{"$nulls":4},{"$error":"#N/A"},{"$error":"#N/A"},{"$f":"IFERROR(AVERAGEIFS(WeightTable[BERAT],WeightTable[TARIKH],\">=\"&H17,WeightTable[TARIKH],\"<=\"&I17),NA())","v":{"$error":"#N/A"}}]
[{"$f":"IF(('Penjejak Menghilangkan Berat'!C39=0)*('Penjejak Menghilangkan Berat'!C38=0),TRUE)","v":true},{"$f":"IF(A18,0,IF('Penjejak Menghilangkan Berat'!B39=0,'Penjejak Menghilangkan Berat'!B38+5,'Penjejak Menghilangkan Berat'!B39))","v":"00:00:00"},{"$f":"'Penjejak Menghilangkan Berat'!C39","v":0},{"$nulls":4},{"$error":"#N/A"},{"$error":"#N/A"},{"$f":"IFERROR(AVERAGEIFS(WeightTable[BERAT],WeightTable[TARIKH],\">=\"&H18,WeightTable[TARIKH],\"<=\"&I18),NA())","v":{"$error":"#N/A"}}]
[{"$f":"IF(('Penjejak Menghilangkan Berat'!C40=0)*('Penjejak Menghilangkan Berat'!C39=0),TRUE)","v":true},{"$f":"IF(A19,0,IF('Penjejak Menghilangkan Berat'!B40=0,'Penjejak Menghilangkan Berat'!B39+5,'Penjejak Menghilangkan Berat'!B40))","v":"00:00:00"},{"$f":"'Penjejak Menghilangkan Berat'!C40","v":0},{"$nulls":4},{"$error":"#N/A"},{"$error":"#N/A"},{"$f":"IFERROR(AVERAGEIFS(WeightTable[BERAT],WeightTable[TARIKH],\">=\"&H19,WeightTable[TARIKH],\"<=\"&I19),NA())","v":{"$error":"#N/A"}}]
[{"$f":"IF(('Penjejak Menghilangkan Berat'!C41=0)*('Penjejak Menghilangkan Berat'!C40=0),TRUE)","v":true},{"$f":"IF(A20,0,IF('Penjejak Menghilangkan Berat'!B41=0,'Penjejak Menghilangkan Berat'!B40+5,'Penjejak Menghilangkan Berat'!B41))","v":"00:00:00"},{"$f":"'Penjejak Menghilangkan Berat'!C41","v":0},{"$nulls":4},{"$error":"#N/A"},{"$error":"#N/A"},{"$f":"IFERROR(AVERAGEIFS(WeightTable[BERAT],WeightTable[TARIKH],\">=\"&H20,WeightTable[TARIKH],\"<=\"&I20),NA())","v":{"$error":"#N/A"}}]
[{"$f":"IF(('Penjejak Menghilangkan Berat'!C42=0)*('Penjejak Menghilangkan Berat'!C41=0),TRUE)","v":true},{"$f":"IF(A21,0,IF('Penjejak Menghilangkan Berat'!B42=0,'Penjejak Menghilangkan Berat'!B41+5,'Penjejak Menghilangkan Berat'!B42))","v":"00:00:00"},{"$f":"'Penjejak Menghilangkan Berat'!C42","v":0},{"$nulls":4},{"$error":"#N/A"},{"$error":"#N/A"},{"$f":"IFERROR(AVERAGEIFS(WeightTable[BERAT],WeightTable[TARIKH],\">=\"&H21,WeightTable[TARIKH],\"<=\"&I21),NA())","v":{"$error":"#N/A"}}]
[{"$f":"IF(('Penjejak Menghilangkan Berat'!C43=0)*('Penjejak Menghilangkan Berat'!C42=0),TRUE)","v":true},{"$f":"IF(A22,0,IF('Penjejak Menghilangkan Berat'!B43=0,'Penjejak Menghilangkan Berat'!B42+5,'Penjejak Menghilangkan Berat'!B43))","v":"00:00:00"},{"$f":"'Penjejak Menghilangkan Berat'!C43","v":0},{"$nulls":4},{"$error":"#N/A"},{"$error":"#N/A"},{"$f":"IFERROR(AVERAGEIFS(WeightTable[BERAT],WeightTable[TARIKH],\">=\"&H22,WeightTable[TARIKH],\"<=\"&I22),NA())","v":{"$error":"#N/A"}}]
[{"$f":"IF(('Penjejak Menghilangkan Berat'!C44=0)*('Penjejak Menghilangkan Berat'!C43=0),TRUE)","v":true},{"$f":"IF(A23,0,IF('Penjejak Menghilangkan Berat'!B44=0,'Penjejak Menghilangkan Berat'!B43+5,'Penjejak Menghilangkan Berat'!B44))","v":"00:00:00"},{"$f":"'Penjejak Menghilangkan Berat'!C44","v":0},{"$nulls":4},{"$error":"#N/A"},{"$error":"#N/A"},{"$f":"IFERROR(AVERAGEIFS(WeightTable[BERAT],WeightTable[TARIKH],\">=\"&H23,WeightTable[TARIKH],\"<=\"&I23),NA())","v":{"$error":"#N/A"}}]
[{"$f":"IF(('Penjejak Menghilangkan Berat'!C45=0)*('Penjejak Menghilangkan Berat'!C44=0),TRUE)","v":true},{"$f":"IF(A24,0,IF('Penjejak Menghilangkan Berat'!B45=0,'Penjejak Menghilangkan Berat'!B44+5,'Penjejak Menghilangkan Berat'!B45))","v":"00:00:00"},{"$f":"'Penjejak Menghilangkan Berat'!C45","v":0},{"$nulls":4},{"$error":"#N/A"},{"$error":"#N/A"},{"$f":"IFERROR(AVERAGEIFS(WeightTable[BERAT],WeightTable[TARIKH],\">=\"&H24,WeightTable[TARIKH],\"<=\"&I24),NA())","v":{"$error":"#N/A"}}]
[{"$f":"IF(('Penjejak Menghilangkan Berat'!C46=0)*('Penjejak Menghilangkan Berat'!C45=0),TRUE)","v":true},{"$f":"IF(A25,0,IF('Penjejak Menghilangkan Berat'!B46=0,'Penjejak Menghilangkan Berat'!B45+5,'Penjejak Menghilangkan Berat'!B46))","v":"00:00:00"},{"$f":"'Penjejak Menghilangkan Berat'!C46","v":0},{"$nulls":4},{"$error":"#N/A"},{"$error":"#N/A"},{"$f":"IFERROR(AVERAGEIFS(WeightTable[BERAT],WeightTable[TARIKH],\">=\"&H25,WeightTable[TARIKH],\"<=\"&I25),NA())","v":{"$error":"#N/A"}}]
[{"$f":"IF(('Penjejak Menghilangkan Berat'!C47=0)*('Penjejak Menghilangkan Berat'!C46=0),TRUE)","v":true},{"$f":"IF(A26,0,IF('Penjejak Menghilangkan Berat'!B47=0,'Penjejak Menghilangkan Berat'!B46+5,'Penjejak Menghilangkan Berat'!B47))","v":"00:00:00"},{"$f":"'Penjejak Menghilangkan Berat'!C47","v":0},{"$nulls":4},{"$error":"#N/A"},{"$error":"#N/A"},{"$f":"IFERROR(AVERAGEIFS(WeightTable[BERAT],WeightTable[TARIKH],\">=\"&H26,WeightTable[TARIKH],\"<=\"&I26),NA())","v":{"$error":"#N/A"}}]
[{"$f":"IF(('Penjejak Menghilangkan Berat'!C48=0)*('Penjejak Menghilangkan Berat'!C47=0),TRUE)","v":true},{"$f":"IF(A27,0,IF('Penjejak Menghilangkan Berat'!B48=0,'Penjejak Menghilangkan Berat'!B47+5,'Penjejak Menghilangkan Berat'!B48))","v":"00:00:00"},{"$f":"'Penjejak Menghilangkan Berat'!C48","v":0},{"$nulls":4},{"$error":"#N/A"},{"$error":"#N/A"},{"$f":"IFERROR(AVERAGEIFS(WeightTable[BERAT],WeightTable[TARIKH],\">=\"&H27,WeightTable[TARIKH],\"<=\"&I27),NA())","v":{"$error":"#N/A"}}]
[{"$f":"IF(('Penjejak Menghilangkan Berat'!C49=0)*('Penjejak Menghilangkan Berat'!C48=0),TRUE)","v":true},{"$f":"IF(A28,0,IF('Penjejak Menghilangkan Berat'!B49=0,'Penjejak Menghilangkan Berat'!B48+5,'Penjejak Menghilangkan Berat'!B49))","v":"00:00:00"},{"$f":"'Penjejak Menghilangkan Berat'!C49","v":0},{"$nulls":4},{"$error":"#N/A"},{"$error":"#N/A"},{"$f":"IFERROR(AVERAGEIFS(WeightTable[BERAT],WeightTable[TARIKH],\">=\"&H28,WeightTable[TARIKH],\"<=\"&I28),NA())","v":{"$error":"#N/A"}}]
[{"$f":"IF(('Penjejak Menghilangkan Berat'!C50=0)*('Penjejak Menghilangkan Berat'!C49=0),TRUE)","v":true},{"$f":"IF(A29,0,IF('Penjejak Menghilangkan Berat'!B50=0,'Penjejak Menghilangkan Berat'!B49+5,'Penjejak Menghilangkan Berat'!B50))","v":"00:00:00"},{"$f":"'Penjejak Menghilangkan Berat'!C50","v":0}]
[{"$f":"IF(('Penjejak Menghilangkan Berat'!C51=0)*('Penjejak Menghilangkan Berat'!C50=0),TRUE)","v":true},{"$f":"IF(A30,0,IF('Penjejak Menghilangkan Berat'!B51=0,'Penjejak Menghilangkan Berat'!B50+5,'Penjejak Menghilangkan Berat'!B51))","v":"00:00:00"},{"$f":"'Penjejak Menghilangkan Berat'!C51","v":0}]
[{"$f":"IF(('Penjejak Menghilangkan Berat'!C52=0)*('Penjejak Menghilangkan Berat'!C51=0),TRUE)","v":true},{"$f":"IF(A31,0,IF('Penjejak Menghilangkan Berat'!B52=0,'Penjejak Menghilangkan Berat'!B51+5,'Penjejak Menghilangkan Berat'!B52))","v":"00:00:00"},{"$f":"'Penjejak Menghilangkan Berat'!C52","v":0}]
[{"$f":"IF(('Penjejak Menghilangkan Berat'!C53=0)*('Penjejak Menghilangkan Berat'!C52=0),TRUE)","v":true},{"$f":"IF(A32,0,IF('Penjejak Menghilangkan Berat'!B53=0,'Penjejak Menghilangkan Berat'!B52+5,'Penjejak Menghilangkan Berat'!B53))","v":"00:00:00"},{"$f":"'Penjejak Menghilangkan Berat'!C53","v":0}]
[{"$f":"IF(('Penjejak Menghilangkan Berat'!C54=0)*('Penjejak Menghilangkan Berat'!C53=0),TRUE)","v":true},{"$f":"IF(A33,0,IF('Penjejak Menghilangkan Berat'!B54=0,'Penjejak Menghilangkan Berat'!B53+5,'Penjejak Menghilangkan Berat'!B54))","v":"00:00:00"},{"$f":"'Penjejak Menghilangkan Berat'!C54","v":0}]
[{"$f":"IF(('Penjejak Menghilangkan Berat'!C55=0)*('Penjejak Menghilangkan Berat'!C54=0),TRUE)","v":true},{"$f":"IF(A34,0,IF('Penjejak Menghilangkan Berat'!B55=0,'Penjejak Menghilangkan Berat'!B54+5,'Penjejak Menghilangkan Berat'!B55))","v":"00:00:00"},{"$f":"'Penjejak Menghilangkan Berat'!C55","v":0}]
[{"$f":"IF(('Penjejak Menghilangkan Berat'!C56=0)*('Penjejak Menghilangkan Berat'!C55=0),TRUE)","v":true},{"$f":"IF(A35,0,IF('Penjejak Menghilangkan Berat'!B56=0,'Penjejak Menghilangkan Berat'!B55+5,'Penjejak Menghilangkan Berat'!B56))","v":"00:00:00"},{"$f":"'Penjejak Menghilangkan Berat'!C56","v":0}]
[{"$f":"IF(('Penjejak Menghilangkan Berat'!C57=0)*('Penjejak Menghilangkan Berat'!C56=0),TRUE)","v":true},{"$f":"IF(A36,0,IF('Penjejak Menghilangkan Berat'!B57=0,'Penjejak Menghilangkan Berat'!B56+5,'Penjejak Menghilangkan Berat'!B57))","v":"00:00:00"},{"$f":"'Penjejak Menghilangkan Berat'!C57","v":0}]
[{"$f":"IF(('Penjejak Menghilangkan Berat'!C58=0)*('Penjejak Menghilangkan Berat'!C57=0),TRUE)","v":true},{"$f":"IF(A37,0,IF('Penjejak Menghilangkan Berat'!B58=0,'Penjejak Menghilangkan Berat'!B57+5,'Penjejak Menghilangkan Berat'!B58))","v":"00:00:00"},{"$f":"'Penjejak Menghilangkan Berat'!C58","v":0}]
[{"$f":"IF(('Penjejak Menghilangkan Berat'!C59=0)*('Penjejak Menghilangkan Berat'!C58=0),TRUE)","v":true},{"$f":"IF(A38,0,IF('Penjejak Menghilangkan Berat'!B59=0,'Penjejak Menghilangkan Berat'!B58+5,'Penjejak Menghilangkan Berat'!B59))","v":"00:00:00"},{"$f":"'Penjejak Menghilangkan Berat'!C59","v":0}]
[{"$f":"IF(('Penjejak Menghilangkan Berat'!C60=0)*('Penjejak Menghilangkan Berat'!C59=0),TRUE)","v":true},{"$f":"IF(A39,0,IF('Penjejak Menghilangkan Berat'!B60=0,'Penjejak Menghilangkan Berat'!B59+5,'Penjejak Menghilangkan Berat'!B60))","v":"00:00:00"},{"$f":"'Penjejak Menghilangkan Berat'!C60","v":0}]
[{"$f":"IF(('Penjejak Menghilangkan Berat'!C61=0)*('Penjejak Menghilangkan Berat'!C60=0),TRUE)","v":true},{"$f":"IF(A40,0,IF('Penjejak Menghilangkan Berat'!B61=0,'Penjejak Menghilangkan Berat'!B60+5,'Penjejak Menghilangkan Berat'!B61))","v":"00:00:00"},{"$f":"'Penjejak Menghilangkan Berat'!C61","v":0}]
[{"$f":"IF(('Penjejak Menghilangkan Berat'!C62=0)*('Penjejak Menghilangkan Berat'!C61=0),TRUE)","v":true},{"$f":"IF(A41,0,IF('Penjejak Menghilangkan Berat'!B62=0,'Penjejak Menghilangkan Berat'!B61+5,'Penjejak Menghilangkan Berat'!B62))","v":"00:00:00"},{"$f":"'Penjejak Menghilangkan Berat'!C62","v":0}]
[{"$f":"IF(('Penjejak Menghilangkan Berat'!C63=0)*('Penjejak Menghilangkan Berat'!C62=0),TRUE)","v":true},{"$f":"IF(A42,0,IF('Penjejak Menghilangkan Berat'!B63=0,'Penjejak Menghilangkan Berat'!B62+5,'Penjejak Menghilangkan Berat'!B63))","v":"00:00:00"},{"$f":"'Penjejak Menghilangkan Berat'!C63","v":0}]
[{"$f":"IF(('Penjejak Menghilangkan Berat'!C64=0)*('Penjejak Menghilangkan Berat'!C63=0),TRUE)","v":true},{"$f":"IF(A43,0,IF('Penjejak Menghilangkan Berat'!B64=0,'Penjejak Menghilangkan Berat'!B63+5,'Penjejak Menghilangkan Berat'!B64))","v":"00:00:00"},{"$f":"'Penjejak Menghilangkan Berat'!C64","v":0}]
[{"$f":"IF(('Penjejak Menghilangkan Berat'!C65=0)*('Penjejak Menghilangkan Berat'!C64=0),TRUE)","v":true},{"$f":"IF(A44,0,IF('Penjejak Menghilangkan Berat'!B65=0,'Penjejak Menghilangkan Berat'!B64+5,'Penjejak Menghilangkan Berat'!B65))","v":"00:00:00"},{"$f":"'Penjejak Menghilangkan Berat'!C65","v":0}]
[{"$f":"IF(('Penjejak Menghilangkan Berat'!C66=0)*('Penjejak Menghilangkan Berat'!C65=0),TRUE)","v":true},{"$f":"IF(A45,0,IF('Penjejak Menghilangkan Berat'!B66=0,'Penjejak Menghilangkan Berat'!B65+5,'Penjejak Menghilangkan Berat'!B66))","v":"00:00:00"},{"$f":"'Penjejak Menghilangkan Berat'!C66","v":0}]
[{"$f":"IF(('Penjejak Menghilangkan Berat'!C67=0)*('Penjejak Menghilangkan Berat'!C66=0),TRUE)","v":true},{"$f":"IF(A46,0,IF('Penjejak Menghilangkan Berat'!B67=0,'Penjejak Menghilangkan Berat'!B66+5,'Penjejak Menghilangkan Berat'!B67))","v":"00:00:00"},{"$f":"'Penjejak Menghilangkan Berat'!C67","v":0}]
[{"$f":"IF(('Penjejak Menghilangkan Berat'!C68=0)*('Penjejak Menghilangkan Berat'!C67=0),TRUE)","v":true},{"$f":"IF(A47,0,IF('Penjejak Menghilangkan Berat'!B68=0,'Penjejak Menghilangkan Berat'!B67+5,'Penjejak Menghilangkan Berat'!B68))","v":"00:00:00"},{"$f":"'Penjejak Menghilangkan Berat'!C68","v":0}]
[{"$f":"IF(('Penjejak Menghilangkan Berat'!C69=0)*('Penjejak Menghilangkan Berat'!C68=0),TRUE)","v":true},{"$f":"IF(A48,0,IF('Penjejak Menghilangkan Berat'!B69=0,'Penjejak Menghilangkan Berat'!B68+5,'Penjejak Menghilangkan Berat'!B69))","v":"00:00:00"},{"$f":"'Penjejak Menghilangkan Berat'!C69","v":0}]
[{"$f":"IF(('Penjejak Menghilangkan Berat'!C70=0)*('Penjejak Menghilangkan Berat'!C69=0),TRUE)","v":true},{"$f":"IF(A49,0,IF('Penjejak Menghilangkan Berat'!B70=0,'Penjejak Menghilangkan Berat'!B69+5,'Penjejak Menghilangkan Berat'!B70))","v":"00:00:00"},{"$f":"'Penjejak Menghilangkan Berat'!C70","v":0}]
[{"$f":"IF(('Penjejak Menghilangkan Berat'!C71=0)*('Penjejak Menghilangkan Berat'!C70=0),TRUE)","v":true},{"$f":"IF(A50,0,IF('Penjejak Menghilangkan Berat'!B71=0,'Penjejak Menghilangkan Berat'!B70+5,'Penjejak Menghilangkan Berat'!B71))","v":"00:00:00"},{"$f":"'Penjejak Menghilangkan Berat'!C71","v":0}]
[{"$f":"IF(('Penjejak Menghilangkan Berat'!C72=0)*('Penjejak Menghilangkan Berat'!C71=0),TRUE)","v":true},{"$f":"IF(A51,0,IF('Penjejak Menghilangkan Berat'!B72=0,'Penjejak Menghilangkan Berat'!B71+5,'Penjejak Menghilangkan Berat'!B72))","v":"00:00:00"},{"$f":"'Penjejak Menghilangkan Berat'!C72","v":0}]
[{"$f":"IF(('Penjejak Menghilangkan Berat'!C73=0)*('Penjejak Menghilangkan Berat'!C72=0),TRUE)","v":true},{"$f":"IF(A52,0,IF('Penjejak Menghilangkan Berat'!B73=0,'Penjejak Menghilangkan Berat'!B72+5,'Penjejak Menghilangkan Berat'!B73))","v":"00:00:00"},{"$f":"'Penjejak Menghilangkan Berat'!C73","v":0}]
[{"$f":"IF(('Penjejak Menghilangkan Berat'!C74=0)*('Penjejak Menghilangkan Berat'!C73=0),TRUE)","v":true},{"$f":"IF(A53,0,IF('Penjejak Menghilangkan Berat'!B74=0,'Penjejak Menghilangkan Berat'!B73+5,'Penjejak Menghilangkan Berat'!B74))","v":"00:00:00"},{"$f":"'Penjejak Menghilangkan Berat'!C74","v":0}]
[{"$f":"IF(('Penjejak Menghilangkan Berat'!C75=0)*('Penjejak Menghilangkan Berat'!C74=0),TRUE)","v":true},{"$f":"IF(A54,0,IF('Penjejak Menghilangkan Berat'!B75=0,'Penjejak Menghilangkan Berat'!B74+5,'Penjejak Menghilangkan Berat'!B75))","v":"00:00:00"},{"$f":"'Penjejak Menghilangkan Berat'!C75","v":0}]
[{"$f":"IF(('Penjejak Menghilangkan Berat'!C76=0)*('Penjejak Menghilangkan Berat'!C75=0),TRUE)","v":true},{"$f":"IF(A55,0,IF('Penjejak Menghilangkan Berat'!B76=0,'Penjejak Menghilangkan Berat'!B75+5,'Penjejak Menghilangkan Berat'!B76))","v":"00:00:00"},{"$f":"'Penjejak Menghilangkan Berat'!C76","v":0}]
[{"$f":"IF(('Penjejak Menghilangkan Berat'!C77=0)*('Penjejak Menghilangkan Berat'!C76=0),TRUE)","v":true},{"$f":"IF(A56,0,IF('Penjejak Menghilangkan Berat'!B77=0,'Penjejak Menghilangkan Berat'!B76+5,'Penjejak Menghilangkan Berat'!B77))","v":"00:00:00"},{"$f":"'Penjejak Menghilangkan Berat'!C77","v":0}]
[{"$f":"IF(('Penjejak Menghilangkan Berat'!C78=0)*('Penjejak Menghilangkan Berat'!C77=0),TRUE)","v":true},{"$f":"IF(A57,0,IF('Penjejak Menghilangkan Berat'!B78=0,'Penjejak Menghilangkan Berat'!B77+5,'Penjejak Menghilangkan Berat'!B78))","v":"00:00:00"},{"$f":"'Penjejak Menghilangkan Berat'!C78","v":0}]
[{"$f":"IF(('Penjejak Menghilangkan Berat'!C79=0)*('Penjejak Menghilangkan Berat'!C78=0),TRUE)","v":true},{"$f":"IF(A58,0,IF('Penjejak Menghilangkan Berat'!B79=0,'Penjejak Menghilangkan Berat'!B78+5,'Penjejak Menghilangkan Berat'!B79))","v":"00:00:00"},{"$f":"'Penjejak Menghilangkan Berat'!C79","v":0}]
[{"$f":"IF(('Penjejak Menghilangkan Berat'!C80=0)*('Penjejak Menghilangkan Berat'!C79=0),TRUE)","v":true},{"$f":"IF(A59,0,IF('Penjejak Menghilangkan Berat'!B80=0,'Penjejak Menghilangkan Berat'!B79+5,'Penjejak Menghilangkan Berat'!B80))","v":"00:00:00"},{"$f":"'Penjejak Menghilangkan Berat'!C80","v":0}]
[{"$f":"IF(('Penjejak Menghilangkan Berat'!C81=0)*('Penjejak Menghilangkan Berat'!C80=0),TRUE)","v":true},{"$f":"IF(A60,0,IF('Penjejak Menghilangkan Berat'!B81=0,'Penjejak Menghilangkan Berat'!B80+5,'Penjejak Menghilangkan Berat'!B81))","v":"00:00:00"},{"$f":"'Penjejak Menghilangkan Berat'!C81","v":0}]
[{"$f":"IF(('Penjejak Menghilangkan Berat'!C82=0)*('Penjejak Menghilangkan Berat'!C81=0),TRUE)","v":true},{"$f":"IF(A61,0,IF('Penjejak Menghilangkan Berat'!B82=0,'Penjejak Menghilangkan Berat'!B81+5,'Penjejak Menghilangkan Berat'!B82))","v":"00:00:00"},{"$f":"'Penjejak Menghilangkan Berat'!C82","v":0}]
[{"$f":"IF(('Penjejak Menghilangkan Berat'!C83=0)*('Penjejak Menghilangkan Berat'!C82=0),TRUE)","v":true},{"$f":"IF(A62,0,IF('Penjejak Menghilangkan Berat'!B83=0,'Penjejak Menghilangkan Berat'!B82+5,'Penjejak Menghilangkan Berat'!B83))","v":"00:00:00"},{"$f":"'Penjejak Menghilangkan Berat'!C83","v":0}]
[{"$f":"IF(('Penjejak Menghilangkan Berat'!C84=0)*('Penjejak Menghilangkan Berat'!C83=0),TRUE)","v":true},{"$f":"IF(A63,0,IF('Penjejak Menghilangkan Berat'!B84=0,'Penjejak Menghilangkan Berat'!B83+5,'Penjejak Menghilangkan Berat'!B84))","v":"00:00:00"},{"$f":"'Penjejak Menghilangkan Berat'!C84","v":0}]
[{"$f":"IF(('Penjejak Menghilangkan Berat'!C85=0)*('Penjejak Menghilangkan Berat'!C84=0),TRUE)","v":true},{"$f":"IF(A64,0,IF('Penjejak Menghilangkan Berat'!B85=0,'Penjejak Menghilangkan Berat'!B84+5,'Penjejak Menghilangkan Berat'!B85))","v":"00:00:00"},{"$f":"'Penjejak Menghilangkan Berat'!C85","v":0}]
[{"$f":"IF(('Penjejak Menghilangkan Berat'!C86=0)*('Penjejak Menghilangkan Berat'!C85=0),TRUE)","v":true},{"$f":"IF(A65,0,IF('Penjejak Menghilangkan Berat'!B86=0,'Penjejak Menghilangkan Berat'!B85+5,'Penjejak Menghilangkan Berat'!B86))","v":"00:00:00"},{"$f":"'Penjejak Menghilangkan Berat'!C86","v":0}]
[{"$f":"IF(('Penjejak Menghilangkan Berat'!C87=0)*('Penjejak Menghilangkan Berat'!C86=0),TRUE)","v":true},{"$f":"IF(A66,0,IF('Penjejak Menghilangkan Berat'!B87=0,'Penjejak Menghilangkan Berat'!B86+5,'Penjejak Menghilangkan Berat'!B87))","v":"00:00:00"},{"$f":"'Penjejak Menghilangkan Berat'!C87","v":0}]
[{"$f":"IF(('Penjejak Menghilangkan Berat'!C88=0)*('Penjejak Menghilangkan Berat'!C87=0),TRUE)","v":true},{"$f":"IF(A67,0,IF('Penjejak Menghilangkan Berat'!B88=0,'Penjejak Menghilangkan Berat'!B87+5,'Penjejak Menghilangkan Berat'!B88))","v":"00:00:00"},{"$f":"'Penjejak Menghilangkan Berat'!C88","v":0}]
[{"$f":"IF(('Penjejak Menghilangkan Berat'!C89=0)*('Penjejak Menghilangkan Berat'!C88=0),TRUE)","v":true},{"$f":"IF(A68,0,IF('Penjejak Menghilangkan Berat'!B89=0,'Penjejak Menghilangkan Berat'!B88+5,'Penjejak Menghilangkan Berat'!B89))","v":"00:00:00"},{"$f":"'Penjejak Menghilangkan Berat'!C89","v":0}]
[{"$f":"IF(('Penjejak Menghilangkan Berat'!C90=0)*('Penjejak Menghilangkan Berat'!C89=0),TRUE)","v":true},{"$f":"IF(A69,0,IF('Penjejak Menghilangkan Berat'!B90=0,'Penjejak Menghilangkan Berat'!B89+5,'Penjejak Menghilangkan Berat'!B90))","v":"00:00:00"},{"$f":"'Penjejak Menghilangkan Berat'!C90","v":0}]
[{"$f":"IF(('Penjejak Menghilangkan Berat'!C91=0)*('Penjejak Menghilangkan Berat'!C90=0),TRUE)","v":true},{"$f":"IF(A70,0,IF('Penjejak Menghilangkan Berat'!B91=0,'Penjejak Menghilangkan Berat'!B90+5,'Penjejak Menghilangkan Berat'!B91))","v":"00:00:00"},{"$f":"'Penjejak Menghilangkan Berat'!C91","v":0}]
[{"$f":"IF(('Penjejak Menghilangkan Berat'!C92=0)*('Penjejak Menghilangkan Berat'!C91=0),TRUE)","v":true},{"$f":"IF(A71,0,IF('Penjejak Menghilangkan Berat'!B92=0,'Penjejak Menghilangkan Berat'!B91+5,'Penjejak Menghilangkan Berat'!B92))","v":"00:00:00"},{"$f":"'Penjejak Menghilangkan Berat'!C92","v":0}]
[{"$f":"IF(('Penjejak Menghilangkan Berat'!C93=0)*('Penjejak Menghilangkan Berat'!C92=0),TRUE)","v":true},{"$f":"IF(A72,0,IF('Penjejak Menghilangkan Berat'!B93=0,'Penjejak Menghilangkan Berat'!B92+5,'Penjejak Menghilangkan Berat'!B93))","v":"00:00:00"},{"$f":"'Penjejak Menghilangkan Berat'!C93","v":0}]
[{"$f":"IF(('Penjejak Menghilangkan Berat'!C94=0)*('Penjejak Menghilangkan Berat'!C93=0),TRUE)","v":true},{"$f":"IF(A73,0,IF('Penjejak Menghilangkan Berat'!B94=0,'Penjejak Menghilangkan Berat'!B93+5,'Penjejak Menghilangkan Berat'!B94))","v":"00:00:00"},{"$f":"'Penjejak Menghilangkan Berat'!C94","v":0}]
[{"$f":"IF(('Penjejak Menghilangkan Berat'!C95=0)*('Penjejak Menghilangkan Berat'!C94=0),TRUE)","v":true},{"$f":"IF(A74,0,IF('Penjejak Menghilangkan Berat'!B95=0,'Penjejak Menghilangkan Berat'!B94+5,'Penjejak Menghilangkan Berat'!B95))","v":"00:00:00"},{"$f":"'Penjejak Menghilangkan Berat'!C95","v":0}]
[{"$f":"IF(('Penjejak Menghilangkan Berat'!C96=0)*('Penjejak Menghilangkan Berat'!C95=0),TRUE)","v":true},{"$f":"IF(A75,0,IF('Penjejak Menghilangkan Berat'!B96=0,'Penjejak Menghilangkan Berat'!B95+5,'Penjejak Menghilangkan Berat'!B96))","v":"00:00:00"},{"$f":"'Penjejak Menghilangkan Berat'!C96","v":0}]
[{"$f":"IF(('Penjejak Menghilangkan Berat'!C97=0)*('Penjejak Menghilangkan Berat'!C96=0),TRUE)","v":true},{"$f":"IF(A76,0,IF('Penjejak Menghilangkan Berat'!B97=0,'Penjejak Menghilangkan Berat'!B96+5,'Penjejak Menghilangkan Berat'!B97))","v":"00:00:00"},{"$f":"'Penjejak Menghilangkan Berat'!C97","v":0}]
[{"$f":"IF(('Penjejak Menghilangkan Berat'!C98=0)*('Penjejak Menghilangkan Berat'!C97=0),TRUE)","v":true},{"$f":"IF(A77,0,IF('Penjejak Menghilangkan Berat'!B98=0,'Penjejak Menghilangkan Berat'!B97+5,'Penjejak Menghilangkan Berat'!B98))","v":"00:00:00"},{"$f":"'Penjejak Menghilangkan Berat'!C98","v":0}]
[{"$f":"IF(('Penjejak Menghilangkan Berat'!C99=0)*('Penjejak Menghilangkan Berat'!C98=0),TRUE)","v":true},{"$f":"IF(A78,0,IF('Penjejak Menghilangkan Berat'!B99=0,'Penjejak Menghilangkan Berat'!B98+5,'Penjejak Menghilangkan Berat'!B99))","v":"00:00:00"},{"$f":"'Penjejak Menghilangkan Berat'!C99","v":0}]
[{"$f":"IF(('Penjejak Menghilangkan Berat'!C100=0)*('Penjejak Menghilangkan Berat'!C99=0),TRUE)","v":true},{"$f":"IF(A79,0,IF('Penjejak Menghilangkan Berat'!B100=0,'Penjejak Menghilangkan Berat'!B99+5,'Penjejak Menghilangkan Berat'!B100))","v":"00:00:00"},{"$f":"'Penjejak Menghilangkan Berat'!C100","v":0}]
[{"$f":"IF(('Penjejak Menghilangkan Berat'!C101=0)*('Penjejak Menghilangkan Berat'!C100=0),TRUE)","v":true},{"$f":"IF(A80,0,IF('Penjejak Menghilangkan Berat'!B101=0,'Penjejak Menghilangkan Berat'!B100+5,'Penjejak Menghilangkan Berat'!B101))","v":"00:00:00"},{"$f":"'Penjejak Menghilangkan Berat'!C101","v":0}]
[{"$f":"IF(('Penjejak Menghilangkan Berat'!C102=0)*('Penjejak Menghilangkan Berat'!C101=0),TRUE)","v":true},{"$f":"IF(A81,0,IF('Penjejak Menghilangkan Berat'!B102=0,'Penjejak Menghilangkan Berat'!B101+5,'Penjejak Menghilangkan Berat'!B102))","v":"00:00:00"},{"$f":"'Penjejak Menghilangkan Berat'!C102","v":0}]
[{"$f":"IF(('Penjejak Menghilangkan Berat'!C103=0)*('Penjejak Menghilangkan Berat'!C102=0),TRUE)","v":true},{"$f":"IF(A82,0,IF('Penjejak Menghilangkan Berat'!B103=0,'Penjejak Menghilangkan Berat'!B102+5,'Penjejak Menghilangkan Berat'!B103))","v":"00:00:00"},{"$f":"'Penjejak Menghilangkan Berat'!C103","v":0}]
[{"$f":"IF(('Penjejak Menghilangkan Berat'!C104=0)*('Penjejak Menghilangkan Berat'!C103=0),TRUE)","v":true},{"$f":"IF(A83,0,IF('Penjejak Menghilangkan Berat'!B104=0,'Penjejak Menghilangkan Berat'!B103+5,'Penjejak Menghilangkan Berat'!B104))","v":"00:00:00"},{"$f":"'Penjejak Menghilangkan Berat'!C104","v":0}]
[{"$f":"IF(('Penjejak Menghilangkan Berat'!C105=0)*('Penjejak Menghilangkan Berat'!C104=0),TRUE)","v":true},{"$f":"IF(A84,0,IF('Penjejak Menghilangkan Berat'!B105=0,'Penjejak Menghilangkan Berat'!B104+5,'Penjejak Menghilangkan Berat'!B105))","v":"00:00:00"},{"$f":"'Penjejak Menghilangkan Berat'!C105","v":0}]
[{"$f":"IF(('Penjejak Menghilangkan Berat'!C106=0)*('Penjejak Menghilangkan Berat'!C105=0),TRUE)","v":true},{"$f":"IF(A85,0,IF('Penjejak Menghilangkan Berat'!B106=0,'Penjejak Menghilangkan Berat'!B105+5,'Penjejak Menghilangkan Berat'!B106))","v":"00:00:00"},{"$f":"'Penjejak Menghilangkan Berat'!C106","v":0}]
[{"$f":"IF(('Penjejak Menghilangkan Berat'!C107=0)*('Penjejak Menghilangkan Berat'!C106=0),TRUE)","v":true},{"$f":"IF(A86,0,IF('Penjejak Menghilangkan Berat'!B107=0,'Penjejak Menghilangkan Berat'!B106+5,'Penjejak Menghilangkan Berat'!B107))","v":"00:00:00"},{"$f":"'Penjejak Menghilangkan Berat'!C107","v":0}]
[{"$f":"IF(('Penjejak Menghilangkan Berat'!C108=0)*('Penjejak Menghilangkan Berat'!C107=0),TRUE)","v":true},{"$f":"IF(A87,0,IF('Penjejak Menghilangkan Berat'!B108=0,'Penjejak Menghilangkan Berat'!B107+5,'Penjejak Menghilangkan Berat'!B108))","v":"00:00:00"},{"$f":"'Penjejak Menghilangkan Berat'!C108","v":0}]
[{"$f":"IF(('Penjejak Menghilangkan Berat'!C109=0)*('Penjejak Menghilangkan Berat'!C108=0),TRUE)","v":true},{"$f":"IF(A88,0,IF('Penjejak Menghilangkan Berat'!B109=0,'Penjejak Menghilangkan Berat'!B108+5,'Penjejak Menghilangkan Berat'!B109))","v":"00:00:00"},{"$f":"'Penjejak Menghilangkan Berat'!C109","v":0}]
[{"$f":"IF(('Penjejak Menghilangkan Berat'!C110=0)*('Penjejak Menghilangkan Berat'!C109=0),TRUE)","v":true},{"$f":"IF(A89,0,IF('Penjejak Menghilangkan Berat'!B110=0,'Penjejak Menghilangkan Berat'!B109+5,'Penjejak Menghilangkan Berat'!B110))","v":"00:00:00"},{"$f":"'Penjejak Menghilangkan Berat'!C110","v":0}]
[{"$f":"IF(('Penjejak Menghilangkan Berat'!C111=0)*('Penjejak Menghilangkan Berat'!C110=0),TRUE)","v":true},{"$f":"IF(A90,0,IF('Penjejak Menghilangkan Berat'!B111=0,'Penjejak Menghilangkan Berat'!B110+5,'Penjejak Menghilangkan Berat'!B111))","v":"00:00:00"},{"$f":"'Penjejak Menghilangkan Berat'!C111","v":0}]
[{"$f":"IF(('Penjejak Menghilangkan Berat'!C112=0)*('Penjejak Menghilangkan Berat'!C111=0),TRUE)","v":true},{"$f":"IF(A91,0,IF('Penjejak Menghilangkan Berat'!B112=0,'Penjejak Menghilangkan Berat'!B111+5,'Penjejak Menghilangkan Berat'!B112))","v":"00:00:00"},{"$f":"'Penjejak Menghilangkan Berat'!C112","v":0}]
[{"$f":"IF(('Penjejak Menghilangkan Berat'!C113=0)*('Penjejak Menghilangkan Berat'!C112=0),TRUE)","v":true},{"$f":"IF(A92,0,IF('Penjejak Menghilangkan Berat'!B113=0,'Penjejak Menghilangkan Berat'!B112+5,'Penjejak Menghilangkan Berat'!B113))","v":"00:00:00"},{"$f":"'Penjejak Menghilangkan Berat'!C113","v":0}]
[{"$f":"IF(('Penjejak Menghilangkan Berat'!C114=0)*('Penjejak Menghilangkan Berat'!C113=0),TRUE)","v":true},{"$f":"IF(A93,0,IF('Penjejak Menghilangkan Berat'!B114=0,'Penjejak Menghilangkan Berat'!B113+5,'Penjejak Menghilangkan Berat'!B114))","v":"00:00:00"},{"$f":"'Penjejak Menghilangkan Berat'!C114","v":0}]
[{"$f":"IF(('Penjejak Menghilangkan Berat'!C115=0)*('Penjejak Menghilangkan Berat'!C114=0),TRUE)","v":true},{"$f":"IF(A94,0,IF('Penjejak Menghilangkan Berat'!B115=0,'Penjejak Menghilangkan Berat'!B114+5,'Penjejak Menghilangkan Berat'!B115))","v":"00:00:00"},{"$f":"'Penjejak Menghilangkan Berat'!C115","v":0}]
[{"$f":"IF(('Penjejak Menghilangkan Berat'!C116=0)*('Penjejak Menghilangkan Berat'!C115=0),TRUE)","v":true},{"$f":"IF(A95,0,IF('Penjejak Menghilangkan Berat'!B116=0,'Penjejak Menghilangkan Berat'!B115+5,'Penjejak Menghilangkan Berat'!B116))","v":"00:00:00"},{"$f":"'Penjejak Menghilangkan Berat'!C116","v":0}]
[{"$f":"IF(('Penjejak Menghilangkan Berat'!C117=0)*('Penjejak Menghilangkan Berat'!C116=0),TRUE)","v":true},{"$f":"IF(A96,0,IF('Penjejak Menghilangkan Berat'!B117=0,'Penjejak Menghilangkan Berat'!B116+5,'Penjejak Menghilangkan Berat'!B117))","v":"00:00:00"},{"$f":"'Penjejak Menghilangkan Berat'!C117","v":0}]
[{"$f":"IF(('Penjejak Menghilangkan Berat'!C118=0)*('Penjejak Menghilangkan Berat'!C117=0),TRUE)","v":true},{"$f":"IF(A97,0,IF('Penjejak Menghilangkan Berat'!B118=0,'Penjejak Menghilangkan Berat'!B117+5,'Penjejak Menghilangkan Berat'!B118))","v":"00:00:00"},{"$f":"'Penjejak Menghilangkan Berat'!C118","v":0}]
[{"$f":"IF(('Penjejak Menghilangkan Berat'!C119=0)*('Penjejak Menghilangkan Berat'!C118=0),TRUE)","v":true},{"$f":"IF(A98,0,IF('Penjejak Menghilangkan Berat'!B119=0,'Penjejak Menghilangkan Berat'!B118+5,'Penjejak Menghilangkan Berat'!B119))","v":"00:00:00"},{"$f":"'Penjejak Menghilangkan Berat'!C119","v":0}]
[{"$f":"IF(('Penjejak Menghilangkan Berat'!C120=0)*('Penjejak Menghilangkan Berat'!C119=0),TRUE)","v":true},{"$f":"IF(A99,0,IF('Penjejak Menghilangkan Berat'!B120=0,'Penjejak Menghilangkan Berat'!B119+5,'Penjejak Menghilangkan Berat'!B120))","v":"00:00:00"},{"$f":"'Penjejak Menghilangkan Berat'!C120","v":0}]
[{"$f":"IF(('Penjejak Menghilangkan Berat'!C121=0)*('Penjejak Menghilangkan Berat'!C120=0),TRUE)","v":true},{"$f":"IF(A100,0,IF('Penjejak Menghilangkan Berat'!B121=0,'Penjejak Menghilangkan Berat'!B120+5,'Penjejak Menghilangkan Berat'!B121))","v":"00:00:00"},{"$f":"'Penjejak Menghilangkan Berat'!C121","v":0}]
[{"$f":"IF(('Penjejak Menghilangkan Berat'!C122=0)*('Penjejak Menghilangkan Berat'!C121=0),TRUE)","v":true},{"$f":"IF(A101,0,IF('Penjejak Menghilangkan Berat'!B122=0,'Penjejak Menghilangkan Berat'!B121+5,'Penjejak Menghilangkan Berat'!B122))","v":"00:00:00"},{"$f":"'Penjejak Menghilangkan Berat'!C122","v":0}]
[{"$f":"IF(('Penjejak Menghilangkan Berat'!C123=0)*('Penjejak Menghilangkan Berat'!C122=0),TRUE)","v":true},{"$f":"IF(A102,0,IF('Penjejak Menghilangkan Berat'!B123=0,'Penjejak Menghilangkan Berat'!B122+5,'Penjejak Menghilangkan Berat'!B123))","v":"00:00:00"},{"$f":"'Penjejak Menghilangkan Berat'!C123","v":0}]
[{"$f":"IF(('Penjejak Menghilangkan Berat'!C124=0)*('Penjejak Menghilangkan Berat'!C123=0),TRUE)","v":true},{"$f":"IF(A103,0,IF('Penjejak Menghilangkan Berat'!B124=0,'Penjejak Menghilangkan Berat'!B123+5,'Penjejak Menghilangkan Berat'!B124))","v":"00:00:00"},{"$f":"'Penjejak Menghilangkan Berat'!C124","v":0}]
[{"$f":"IF(('Penjejak Menghilangkan Berat'!C125=0)*('Penjejak Menghilangkan Berat'!C124=0),TRUE)","v":true},{"$f":"IF(A104,0,IF('Penjejak Menghilangkan Berat'!B125=0,'Penjejak Menghilangkan Berat'!B124+5,'Penjejak Menghilangkan Berat'!B125))","v":"00:00:00"},{"$f":"'Penjejak Menghilangkan Berat'!C125","v":0}]
[{"$f":"IF(('Penjejak Menghilangkan Berat'!C126=0)*('Penjejak Menghilangkan Berat'!C125=0),TRUE)","v":true},{"$f":"IF(A105,0,IF('Penjejak Menghilangkan Berat'!B126=0,'Penjejak Menghilangkan Berat'!B125+5,'Penjejak Menghilangkan Berat'!B126))","v":"00:00:00"},{"$f":"'Penjejak Menghilangkan Berat'!C126","v":0}]
[{"$f":"IF(('Penjejak Menghilangkan Berat'!C127=0)*('Penjejak Menghilangkan Berat'!C126=0),TRUE)","v":true},{"$f":"IF(A106,0,IF('Penjejak Menghilangkan Berat'!B127=0,'Penjejak Menghilangkan Berat'!B126+5,'Penjejak Menghilangkan Berat'!B127))","v":"00:00:00"},{"$f":"'Penjejak Menghilangkan Berat'!C127","v":0}]
[{"$f":"IF(('Penjejak Menghilangkan Berat'!C128=0)*('Penjejak Menghilangkan Berat'!C127=0),TRUE)","v":true},{"$f":"IF(A107,0,IF('Penjejak Menghilangkan Berat'!B128=0,'Penjejak Menghilangkan Berat'!B127+5,'Penjejak Menghilangkan Berat'!B128))","v":"00:00:00"},{"$f":"'Penjejak Menghilangkan Berat'!C128","v":0}]
[{"$f":"IF(('Penjejak Menghilangkan Berat'!C129=0)*('Penjejak Menghilangkan Berat'!C128=0),TRUE)","v":true},{"$f":"IF(A108,0,IF('Penjejak Menghilangkan Berat'!B129=0,'Penjejak Menghilangkan Berat'!B128+5,'Penjejak Menghilangkan Berat'!B129))","v":"00:00:00"},{"$f":"'Penjejak Menghilangkan Berat'!C129","v":0}]